bitfinex/quotes_ETHUSD_20240607
["timestamp","ask_amount","ask_price","bid_price","bid_amount"]
[1717789362621,0.7233884,3703.5,3703.1,2.970418]
[1717789362826,0.7233884,3703.5,3703.3,2.70029]
[1717789363064,0.02992988,3703.4,3703.3,2.70029]
[1717789363347,0.02992988,3703.4,3703.3,3.5157508]
[1717789364454,1.4733884,3703.7,3703.3,3.5157508]
[1717789364753,0.02992988,3703.4,3703.3,3.5157508]
[1717789364956,1.4733884,3703.7,3703.3,3.5157508]
[1717789365160,0.75,3703.9,3703.7,2.69995]
[1717789365318,1.4733884,3703.9,3703.7,2.69995]
[1717789366842,0.7233884,3704.1,3703.7,3.207445]
[1717789367625,3.0,3704.2,3704.1,2.69971]
[1717789369128,0.7233884,3704.3,3704.1,2.69971]
[1717789371375,10.7233884,3704.7,3704.4,2.69949]
[1717789371542,10.7233884,3704.7,3704.6,2.69934]
[1717789372066,10.0,3704.7,3704.6,2.69934]
[1717789372239,10.0,3704.7,3704.6,3.24934]
[1717789372451,10.0,3704.7,3704.6,8.31298]
[1717789373294,10.02672626,3704.7,3704.6,5.06364]
[1717789373449,10.02672626,3704.7,3704.6,5.6199159]
[1717789373854,13.02672626,3704.7,3704.6,3.2556159]
[1717789374067,13.75011466,3704.7,3704.6,2.69934]
[1717789375490,13.02672626,3704.7,3704.6,2.69934]
[1717789377659,13.02672626,3704.7,3704.6,3.24934]
[1717789381415,13.02672626,3704.7,3704.6,2.69934]
[1717789382110,13.02672626,3704.7,3704.6,7.89378]
[1717789382111,10.02672626,3704.7,3704.6,7.89378]
[1717789382310,10.02672626,3704.7,3704.6,8.872858]
[1717789382719,10.02672626,3704.7,3704.6,9.422858]
[1717789383014,10.02672626,3704.7,3704.6,10.81571266]
[1717789383177,0.30828855,3705.9,3705.8,2.69847]
[1717789383377,0.30828855,3705.9,3705.8,3.24847]
[1717789385177,0.30828855,3705.9,3705.8,5.94694]
[1717789387429,0.30828855,3705.9,3705.8,7.33979466]
[1717789387593,0.30828855,3705.9,3705.8,7.94507228]
[1717789387594,8.55e-06,3705.9,3705.8,7.94507228]
[1717789387799,8.55e-06,3705.9,3705.8,6.55221762]
[1717789388480,8.55e-06,3705.9,3705.8,3.85374762]
[1717789388645,0.72339695,3705.9,3705.8,2.69847]
[1717789389152,1.4977143,3705.9,3705.8,2.69847]
[1717789389341,0.7477143,3705.9,3705.8,2.69847]
[1717789389554,1.4977143,3705.9,3705.8,2.69847]
[1717789389795,0.7233884,3705.7,3705.4,2.69872]
[1717789389956,0.7233884,3705.2,3704.9,2.69905]
[1717789390288,0.02385871,3705.1,3704.9,2.69905]
[1717789390451,1.4733884,3705.3,3704.9,2.69905]
[1717789390648,0.7233884,3705.1,3704.9,2.69905]
[1717789390895,0.02381459,3705.0,3704.9,2.69905]
[1717789391196,0.02381459,3705.0,3704.9,2.968955]
[1717789391504,0.7233884,3705.3,3704.9,2.968955]
[1717789393491,0.7233884,3705.5,3705.3,2.69882]
[1717789395060,0.7233884,3705.5,3704.9,0.269905]
[1717789395061,0.7233884,3705.7,3705.6,2.69858]
[1717789395262,3.00000855,3705.9,3705.6,2.69858]
[1717789395589,3.0,3705.8,3705.6,2.69858]
[1717789395794,3.0,3705.8,3705.6,2.968438]
[1717789396094,8.55e-06,3705.9,3705.6,2.968438]
[1717789396657,8.55e-06,3705.9,3705.8,2.69847]
[1717789398298,8.55e-06,3705.9,3705.8,6.78979466]
[1717789398460,8.55e-06,3705.9,3705.8,3.24847]
[1717789398792,8.55e-06,3705.9,3705.8,3.8464628]
[1717789402397,8.55e-06,3705.9,3705.8,3.2964628]
[1717789402600,8.55e-06,3705.9,3705.8,2.69847]
[1717789405766,8.55e-06,3705.9,3705.8,3.24847]
[1717789408817,8.55e-06,3705.9,3705.8,2.69847]
[1717789409166,0.023747,3705.9,3705.8,2.69847]
[1717789412721,3.023747,3705.9,3705.8,2.69847]
[1717789412902,0.023747,3705.9,3705.8,2.69847]
[1717789415634,0.7471354,3705.9,3705.8,2.69847]
[1717789415940,0.023747,3705.9,3705.8,2.69847]
[1717789420200,0.023747,3705.9,3705.8,2.968317]
[1717789420836,0.023747,3705.9,3705.8,2.69847]
[1717789422334,0.023747,3705.9,3705.8,3.24847]
[1717789422896,8.55e-06,3705.9,3705.8,3.24847]
[1717789423501,8.55e-06,3705.9,3705.8,5.94694]
[1717789423810,8.55e-06,3705.9,3705.8,12.43376466]
[1717789424022,8.55e-06,3705.9,3705.8,13.87654113]
[1717789426704,8.55e-06,3705.9,3705.8,13.90315273]
[1717789426933,8.55e-06,3705.9,3705.8,13.87654113]
[1717789429543,8.55e-06,3705.9,3705.8,11.93368647]
[1717789431464,8.55e-06,3705.9,3705.8,13.87654113]
[1717789433438,8.55e-06,3705.9,3705.8,15.87054113]
[1717789433821,8.55e-06,3705.9,3705.8,13.87654113]
[1717789434335,8.55e-06,3705.9,3705.8,6.83971647]
[1717789434668,8.55e-06,3705.9,3705.8,5.39694]
[1717789435461,8.55e-06,3705.9,3705.8,5.94694]
[1717789436131,8.55e-06,3705.9,3705.8,7.33979466]
[1717789438299,8.55e-06,3705.9,3705.8,5.39694]
[1717789438692,8.55e-06,3705.9,3705.8,2.69847]
[1717789439474,8.55e-06,3705.9,3705.8,3.518317]
[1717789439876,8.55e-06,3705.9,3705.8,7.60964166]
[1717789440174,8.55e-06,3705.9,3705.8,14.60711166]
[1717789440358,8.55e-06,3705.9,3705.8,6.216787]
[1717789441639,8.55e-06,3705.9,3705.8,3.24847]
[1717789442341,2.33060855,3706.1,3705.8,3.24847]
[1717789445254,0.75,3706.3,3705.8,0.55]
[1717789445461,0.7233884,3706.4,3706.2,2.69818]
[1717789450203,0.75,3706.3,3706.2,2.69818]
[1717789450558,0.75,3706.3,3705.8,0.55]
[1717789450559,2.2628,3705.9,3705.8,2.69841]
[1717789450788,5.2628,3705.9,3705.8,2.69841]
[1717789451280,6.0128,3705.9,3705.8,2.69841]
[1717789452106,5.2628,3705.9,3705.8,2.69841]
[1717789452303,3.0,3705.9,3705.8,2.69841]
[1717789452516,0.7233884,3706.2,3705.8,2.69841]
[1717789453085,0.75,3706.1,3705.8,2.69841]
[1717789453397,0.7233884,3706.4,3706.1,2.69821]
[1717789454680,0.75,3706.2,3706.1,2.69821]
[1717789454915,3.75,3706.2,3706.1,2.69821]
[1717789455301,4.4733884,3706.2,3706.1,2.69821]
[1717789459490,1.4733884,3705.9,3705.7,2.69848]
[1717789460625,1.4733884,3705.9,3704.5,4.69338]
[1717789460626,0.75,3705.7,3705.3,2.69879]
[1717789460935,0.75,3705.5,3705.3,2.69879]
[1717789461636,0.7233884,3705.4,3705.3,2.69879]
[1717789462505,0.75,3705.5,3705.3,2.69879]
[1717789463936,0.7233884,3705.4,3705.3,2.69879]
[1717789464135,0.75,3705.5,3705.3,2.69879]
[1717789465439,0.7233884,3705.6,3705.3,2.69879]
[1717789466160,0.75,3705.5,3705.3,2.69879]
[1717789466313,0.7233884,3705.6,3705.3,2.69879]
[1717789466510,3.75,3705.7,3705.3,2.69879]
[1717789466715,0.75,3705.9,3705.6,2.69861]
[1717789467018,0.7233884,3706.0,3705.6,2.69861]
[1717789467232,0.7233884,3706.0,3705.0,2.2705]
[1717789467233,0.75,3705.9,3705.8,2.6984]
[1717789467643,3.59393884,3705.9,3705.8,2.6984]
[1717789467862,6.59393884,3705.9,3705.8,2.6984]
[1717789468846,0.75,3705.4,3704.6,2.69932]
[1717789469052,0.75,3705.4,3704.7,0.55]
[1717789470340,0.75,3705.4,3705.3,2.69883]
[1717789470886,1.4733884,3705.4,3705.3,2.69883]
[1717789471054,0.75,3705.4,3705.3,2.69883]
[1717789473459,0.75,3705.0,3704.2,2.3211]
[1717789473749,0.75,3704.7,3704.2,2.3211]
[1717789474050,0.7233884,3705.0,3704.9,2.69912]
[1717789476851,3.75,3705.1,3704.9,2.69912]
[1717789477051,3.0,3705.1,3704.9,2.69912]
[1717789477255,3.0,3705.1,3704.9,2.969032]
[1717789477458,0.75,3705.3,3705.2,2.6989]
[1717789478441,0.75,3705.5,3705.2,2.6989]
[1717789486192,0.75,3705.7,3705.2,2.6989]
[1717789486473,0.75,3705.7,3705.6,2.69861]
[1717789486640,1.4733884,3706.0,3705.9,2.69839]
[1717789487649,1.4733884,3706.6,3706.5,2.69796]
[1717789487882,0.8733884,3706.8,3706.5,2.69796]
[1717789490894,0.1233884,3706.8,3706.5,2.69796]
[1717789491083,0.1233884,3706.8,3706.5,3.237566]
[1717789495662,0.1233884,3706.8,3706.5,5.935526]
[1717789495867,0.1233884,3706.8,3706.6,0.55]
[1717789497308,0.1233884,3706.8,3706.7,2.69781]
[1717789498325,0.1233884,3706.8,3706.7,5.39562]
[1717789498609,0.1233884,3706.8,3706.7,7.1043586]
[1717789500605,1.5967768,3706.8,3706.7,2.69781]
[1717789502022,0.1233884,3706.8,3706.7,2.69781]
[1717789503205,0.8467768,3706.8,3706.7,2.69781]
[1717789503394,3.8467768,3706.8,3706.7,2.69781]
[1717789504016,0.75,3706.4,3706.3,2.69806]
[1717789504219,0.75,3706.0,3705.9,2.69833]
[1717789504488,1.4733884,3706.0,3705.9,2.69833]
[1717789504890,4.4733884,3706.0,3705.9,2.69833]
[1717789506311,4.4733884,3706.0,3704.6,9.7071]
[1717789506312,0.75,3705.1,3704.6,2.2771]
[1717789506542,0.75,3705.1,3704.7,2.69923]
[1717789506833,0.75,3705.1,3704.7,2.969153]
[1717789506834,0.7233884,3705.0,3704.7,2.969153]
[1717789508791,0.7233884,3704.8,3704.7,2.69923]
[1717789509297,0.7233884,3704.8,3703.3,2.70022]
[1717789509298,1.4733884,3704.4,3704.3,2.69954]
[1717789509827,0.7233884,3704.0,3703.9,2.69983]
[1717789510325,0.75,3704.1,3703.9,2.69983]
[1717789510529,0.7233884,3704.0,3703.9,2.69983]
[1717789511591,0.75,3703.6,3703.4,2.70015]
[1717789511810,0.7233884,3703.5,3703.4,2.70015]
[1717789513295,0.75,3703.6,3703.4,2.70015]
[1717789513496,0.75,3703.6,3703.4,2.970165]
[1717789513735,0.75,3703.8,3703.4,2.970165]
[1717789514103,0.7233884,3703.5,3703.4,2.70015]
[1717789514302,0.75,3703.6,3703.4,2.70015]
[1717789515134,0.75,3703.8,3703.4,2.70015]
[1717789515736,0.75,3704.2,3704.1,2.69971]
[1717789516043,7.43,3704.5,3704.1,2.69971]
[1717789516044,7.43,3704.5,3704.1,2.969681]
[1717789517143,3.0,3704.4,3704.1,2.969681]
[1717789518542,0.75,3704.2,3704.1,2.69971]
[1717789518716,1.4733884,3704.2,3704.1,2.69971]
[1717789519206,0.75,3703.7,3702.6,2.3377]
[1717789519518,1.4733884,3703.7,3702.6,2.3377]
[1717789519734,0.75,3703.7,3702.7,0.703253]
[1717789519933,0.7233884,3703.6,3702.7,0.703253]
[1717789520108,0.75,3703.7,3702.7,0.703253]
[1717789520619,0.75,3703.7,3703.5,2.70014]
[1717789521038,1.4733884,3704.0,3703.9,2.69985]
[1717789522339,0.75,3704.0,3703.9,2.69985]
[1717789522538,0.75,3704.2,3703.9,2.969835]
[1717789522810,0.75,3704.2,3703.9,2.69985]
[1717789523221,0.7233884,3704.1,3703.9,2.69985]
[1717789523853,2.14285466,3704.0,3703.9,2.69985]
[1717789524154,3.75,3704.0,3703.9,2.69985]
[1717789524359,0.75,3704.0,3703.9,2.69985]
[1717789525058,0.89733884,3704.0,3703.9,2.69985]
[1717789525379,5.2901935,3704.0,3703.9,2.69985]
[1717789526340,0.75,3702.8,3702.3,1.994]
[1717789526553,0.75,3702.8,3701.9,0.42300234]
[1717789526554,0.75,3702.5,3702.4,2.70091]
[1717789529959,3.0,3703.1,3702.0,0.42320051]
[1717789530252,8.1533884,3703.5,3702.4,2.70092]
[1717789530253,0.75,3703.2,3702.4,2.70092]
[1717789530452,0.75,3703.2,3703.1,2.70044]
[1717789532561,1.4733884,3703.2,3703.1,2.70044]
[1717789532735,0.75,3703.2,3703.1,2.70044]
[1717789533459,1.4733884,3703.2,3703.1,2.70044]
[1717789534134,0.75,3702.8,3701.7,2.70145]
[1717789534437,0.75,3702.6,3701.7,2.70145]
[1717789534636,3.0,3702.8,3701.7,1.39285466]
[1717789534977,3.75,3702.8,3702.7,2.70073]
[1717789536033,0.75,3702.8,3702.7,2.70073]
[1717789536358,3.0,3702.8,3702.7,2.70073]
[1717789536562,0.75,3703.0,3702.7,2.70073]
[1717789542386,0.75,3702.8,3702.7,2.70073]
[1717789544345,1.4733884,3702.8,3702.7,2.70073]
[1717789545042,1.4733884,3702.8,3701.2,2.70175]
[1717789545043,0.75,3701.9,3701.5,2.70157]
[1717789545279,0.75,3701.7,3701.5,2.70157]
[1717789545677,0.75,3700.8,3700.4,2.70237]
[1717789547331,0.75,3699.5,3699.4,2.7031]
[1717789548521,0.75,3699.8,3699.4,2.7031]
[1717789549030,3.7233884,3700.2,3699.9,2.70277]
[1717789549031,0.75,3700.0,3699.9,2.70277]
[1717789549894,2.14285466,3700.0,3699.9,2.70277]
[1717789550111,0.75,3700.0,3699.9,2.70277]
[1717789550685,3.7233884,3700.2,3699.9,2.70277]
[1717789551000,0.75,3700.0,3699.9,2.70277]
[1717789552197,0.75,3700.2,3699.9,2.70277]
[1717789552383,1.4733884,3700.5,3700.4,2.70241]
[1717789552583,0.75,3700.5,3700.4,2.70241]
[1717789554941,3.75,3700.7,3700.4,2.972651]
[1717789556583,0.75,3700.7,3700.4,2.972651]
[1717789557426,0.75,3700.5,3700.4,2.70241]
[1717789558227,0.75,3700.7,3700.4,2.70241]
[1717789561475,0.75,3700.5,3700.4,2.70241]
[1717789562179,0.75,3699.6,3698.7,2.2765]
[1717789562482,3.0,3700.6,3699.9,2.7027]
[1717789562483,6.88483979,3700.2,3699.9,2.7027]
[1717789562642,3.0,3700.1,3699.9,2.7027]
[1717789563146,0.38416884,3700.4,3700.2,2.70251]
[1717789563677,3.0,3700.6,3700.2,2.70251]
[1717789563979,4.39285466,3700.7,3700.6,2.70226]
[1717789564181,3.0,3700.7,3700.6,2.70226]
[1717789566554,4.39285466,3700.7,3700.6,2.70226]
[1717789566755,5.52062411,3700.7,3700.4,2.70234]
[1717789567779,1.39285466,3700.6,3700.4,2.70234]
[1717789575801,2.2694,3700.5,3700.0,2.70264]
[1717789576003,1.39285466,3700.4,3699.6,2.70295]
[1717789576203,2.20431321,3700.4,3699.6,2.70295]
[1717789576436,7.90675321,3700.4,3699.6,2.70295]
[1717789576586,0.58451855,3700.3,3699.6,2.70295]
[1717789576920,1.39285466,3700.2,3699.6,2.70295]
[1717789577086,0.79067532,3700.1,3699.6,2.70295]
[1717789577412,1.39285466,3700.0,3699.6,2.70295]
[1717789577619,1.39285466,3700.0,3699.2,2.70323]
[1717789578216,2.3452,3699.9,3699.2,2.70323]
[1717789578423,1.39285466,3699.8,3699.2,2.70323]
[1717789578719,0.67380547,3699.7,3699.2,2.70323]
[1717789578923,1.39285466,3699.6,3699.2,2.70323]
[1717789580124,4.39285466,3699.6,3699.2,2.70323]
[1717789580283,1.39285466,3699.6,3699.2,2.70323]
[1717789583294,1.39285466,3699.6,3698.8,2.70351]
[1717789583907,0.67380547,3699.7,3697.6,2.70444]
[1717789583908,3.68955466,3698.9,3697.6,2.70444]
[1717789584111,2.70387,3698.4,3697.6,2.70444]
[1717789584331,1.39285466,3698.3,3697.6,2.70444]
[1717789584528,0.40967247,3698.2,3697.6,2.70444]
[1717789584733,1.39285466,3698.1,3697.6,2.70444]
[1717789585021,9.88483979,3698.7,3697.6,2.70444]
[1717789585319,1.39285466,3698.2,3697.6,2.70444]
[1717789585693,1.39285466,3698.2,3697.9,2.70419]
[1717789590017,1.39285466,3698.2,3697.5,2.70449]
[1717789590692,2.3118,3698.1,3697.5,2.70449]
[1717789590885,1.39285466,3698.0,3697.5,2.70449]
[1717789591081,0.37046547,3697.9,3697.5,2.70449]
[1717789591324,1.39285466,3697.8,3697.5,2.70449]
[1717789592824,3.0,3698.0,3697.5,2.70449]
[1717789593011,1.39285466,3698.0,3697.5,2.70449]
[1717789594404,3.0,3698.4,3697.8,2.70428]
[1717789594603,1.93880466,3698.3,3697.8,2.70428]
[1717789594993,1.39285466,3698.3,3697.8,2.70428]
[1717789595611,3.0,3698.5,3698.1,2.70404]
[1717789595829,3.0,3698.6,3698.1,2.70404]
[1717789596140,0.98848398,3698.5,3698.1,2.70404]
[1717789596439,5.85575466,3698.4,3697.6,2.70444]
[1717789596735,3.0,3698.3,3697.6,2.70444]
[1717789596895,1.39285466,3698.2,3697.6,2.70444]
[1717789597092,1.39285466,3698.2,3697.9,2.70421]
[1717789598507,3.0,3698.3,3697.9,2.70421]
[1717789598834,5.4904,3698.9,3698.2,2.70399]
[1717789598995,2.60072664,3698.8,3698.2,2.70399]
[1717789599203,3.0,3698.7,3698.2,2.70399]
[1717789599442,1.39285466,3698.6,3698.2,2.70399]
[1717789603033,3.0,3698.8,3698.5,2.70378]
[1717789603205,1.39285466,3698.8,3698.5,2.70378]
[1717789603652,3.0,3699.0,3698.5,2.70378]
[1717789603837,5.85599847,3699.0,3698.5,2.70378]
[1717789605141,1.39285466,3698.9,3698.5,2.70378]
[1717789605810,1.39285466,3698.9,3698.1,2.70402]
[1717789606637,3.97174422,3698.9,3698.1,2.70402]
[1717789606833,3.0,3698.8,3698.1,2.70402]
[1717789607149,2.53634346,3698.7,3698.1,2.70402]
[1717789607318,3.0,3698.6,3698.1,2.70402]
[1717789607523,1.39285466,3698.5,3698.1,2.70402]
[1717789609120,3.0,3698.6,3698.4,2.70387]
[1717789609331,1.39285466,3698.6,3698.4,2.70387]
[1717789609721,3.0,3698.9,3698.7,2.70362]
[1717789609722,1.39285466,3698.8,3698.7,2.70362]
[1717789610054,2.97617858,3698.8,3698.7,2.70362]
[1717789610234,5.97617858,3698.8,3698.7,2.70362]
[1717789610550,6.56102159,3698.8,3698.7,2.70362]
[1717789611643,3.58484301,3698.8,3698.7,2.70362]
[1717789611828,3.58484301,3699.0,3698.7,2.70362]
[1717789612031,1.39285466,3698.9,3698.7,2.70362]
[1717789612255,3.58484301,3699.0,3698.7,2.70362]
[1717789612554,6.26101595,3699.0,3698.7,2.70362]
[1717789612750,0.75,3698.8,3698.7,2.70362]
[1717789615756,0.75,3698.8,3697.8,2.70424]
[1717789615757,2.14285466,3698.8,3698.3,2.70387]
[1717789615953,1.39285466,3698.7,3698.3,2.70387]
[1717789616247,0.69140994,3698.4,3698.3,2.70387]
[1717789620522,2.0842646,3698.4,3698.0,2.70415]
[1717789620722,4.14348112,3698.3,3696.8,5.09631]
[1717789621358,3.0,3698.2,3696.8,5.09631]
[1717789621517,1.39285466,3698.1,3696.8,5.09631]
[1717789621716,0.75,3696.9,3696.8,7.80135]
[1717789621953,0.75,3696.9,3696.8,8.851998]
[1717789622531,3.0,3697.7,3697.6,5.01715]
[1717789622732,0.75,3697.7,3697.6,5.01715]
[1717789623835,0.75,3697.7,3697.6,7.7216]
[1717789624021,0.75,3697.7,3697.6,8.2716]
[1717789624217,0.75,3697.7,3697.6,9.369224]
[1717789628368,0.75,3697.7,3697.6,5.01715]
[1717789628528,0.75,3697.7,3697.6,2.70445]
[1717789632575,0.75,3697.7,3697.6,5.4089]
[1717789632772,0.75,3697.7,3697.6,5.9589]
[1717789635685,0.75,3697.7,3697.6,3.25445]
[1717789635843,0.75,3697.7,3697.6,3.229295]
[1717789637076,0.75,3697.7,3697.6,2.70445]
[1717789639852,2.14285466,3697.7,3696.8,2.70499]
[1717789640092,1.39285466,3697.6,3697.1,2.70476]
[1717789640328,3.5849813,3698.0,3697.5,2.70452]
[1717789640499,1.28539211,3698.0,3697.5,2.70452]
[1717789640701,0.75,3697.6,3697.5,2.70452]
[1717789641490,0.75,3697.6,3697.5,3.25452]
[1717789643336,6.88483979,3698.7,3698.6,2.70372]
[1717789643496,0.75,3698.7,3698.6,2.70372]
[1717789646929,0.75,3698.7,3698.0,2.70413]
[1717789647132,1.39285466,3698.6,3698.0,2.70413]
[1717789647739,0.75,3698.1,3698.0,2.70413]
[1717789649933,0.75,3698.1,3697.6,2.70445]
[1717789650106,3.0,3698.3,3697.6,2.70445]
[1717789650306,1.39285466,3698.2,3697.6,2.70445]
[1717789650530,0.75,3697.7,3697.6,2.70445]
[1717789653257,4.18947066,3697.7,3696.7,2.70506]
[1717789653565,1.39285466,3697.7,3696.7,2.70506]
[1717789653857,0.75,3696.8,3696.7,2.70506]
[1717789659192,0.75,3696.8,3696.7,3.25506]
[1717789659395,0.75,3696.8,3696.7,2.70506]
[1717789666573,0.75,3696.8,3696.7,5.41017]
[1717789669215,0.75,3696.8,3696.7,2.70506]
[1717789671217,0.75,3696.8,3696.7,5.41017]
[1717789672414,0.75,3696.8,3696.7,5.951187]
[1717789679192,3.0,3697.6,3697.5,2.70453]
[1717789679418,0.75,3697.6,3697.5,2.70453]
[1717789679760,3.75,3697.6,3697.5,2.70453]
[1717789680030,0.75,3697.6,3697.5,2.70453]
[1717789680242,3.75,3697.6,3697.5,2.70453]
[1717789680441,0.75,3697.6,3697.5,2.70453]
[1717789680950,0.75,3697.6,3697.5,2.974983]
[1717789681294,0.75,3697.6,3697.5,5.679513]
[1717789687537,0.75,3697.6,3697.5,5.40906]
[1717789689140,0.75,3697.6,3697.5,2.70453]
[1717789689523,0.75,3697.6,3697.5,5.40906]
[1717789689925,0.75,3697.6,3697.5,6.20006]
[1717789690341,0.75,3697.6,3697.5,2.70453]
[1717789690515,0.75,3697.6,3697.5,3.49553]
[1717789692317,0.75,3697.6,3697.5,2.70453]
[1717789692318,1.35109,3697.6,3697.5,2.70453]
[1717789692653,1.32309,3697.6,3697.5,2.70453]
[1717789692953,0.722,3697.6,3697.5,2.70453]
[1717789694329,0.722,3697.6,3697.5,3.49553]
[1717789694663,0.722,3697.6,3697.5,6.20006]
[1717789695820,0.722,3697.6,3697.5,5.40906]
[1717789696719,0.722,3697.6,3697.5,5.949966]
[1717789696953,0.722,3697.6,3697.5,3.245436]
[1717789697157,0.722,3697.6,3697.5,5.949966]
[1717789697952,0.722,3697.6,3697.5,3.245436]
[1717789698116,0.722,3697.6,3697.5,2.70453]
[1717789698731,0.722,3697.6,3697.5,5.40906]
[1717789700652,0.722,3697.6,3697.5,7.30706]
[1717789703329,0.722,3697.6,3697.5,10.01159]
[1717789703852,0.722,3697.6,3697.5,11.012749]
[1717789704061,3.0,3698.1,3698.0,5.40832]
[1717789704259,6.88483979,3698.7,3698.6,2.70372]
[1717789704565,6.88483979,3698.7,3698.2,2.70401]
[1717789704566,2.2876,3699.0,3698.9,2.7035]
[1717789704867,3.0376,3699.0,3698.9,2.7035]
[1717789706170,6.0376,3699.0,3698.9,2.7035]
[1717789707075,6.62239164,3699.0,3698.9,2.7035]
[1717789707234,8.62632314,3699.0,3698.9,2.7035]
[1717789707434,9.21111506,3699.0,3698.9,2.7035]
[1717789707697,10.60396972,3699.0,3697.9,1.898]
[1717789707978,2.4259,3698.8,3698.1,2.70403]
[1717789708182,2.4259,3698.6,3698.1,2.70403]
[1717789708383,0.75,3698.2,3698.1,2.70403]
[1717789710741,0.75,3698.2,3696.8,4.3386]
[1717789710742,2.14285466,3698.2,3696.8,4.3386]
[1717789710945,2.4644,3698.0,3696.5,2.70522]
[1717789711266,2.4644,3698.0,3697.3,2.70463]
[1717789711267,1.39285466,3697.9,3697.3,2.70463]
[1717789711461,0.75,3697.4,3697.3,2.70463]
[1717789720495,0.75,3697.4,3697.3,5.4093]
[1717789720805,0.75,3697.4,3697.3,6.14003]
[1717789721457,6.88483979,3699.1,3698.7,2.7036]
[1717789721657,6.88483979,3699.1,3697.7,2.70438]
[1717789721658,2.2616,3699.5,3698.2,2.4067]
[1717789721863,0.75,3698.3,3698.2,2.4067]
[1717789725413,0.75,3698.3,3698.1,2.70404]
[1717789737001,2.14285466,3698.3,3698.1,2.70404]
[1717789737206,2.4794,3698.2,3698.1,2.70404]
[1717789737433,5.94162547,3698.2,3698.1,2.70404]
[1717789742059,3.46222547,3698.2,3698.1,2.70404]
[1717789744934,3.46222547,3698.2,3696.8,2.4108]
[1717789744935,4.85508013,3698.2,3697.7,2.70435]
[1717789745154,1.39285466,3698.1,3697.7,2.70435]
[1717789745354,0.57250801,3698.0,3697.7,2.70435]
[1717789745640,0.57250801,3698.0,3696.8,2.4108]
[1717789745641,3.2233,3697.8,3697.3,2.70461]
[1717789745839,4.39285466,3697.7,3697.3,2.70461]
[1717789746267,0.75,3697.4,3697.3,2.70461]
[1717789746487,1.26428547,3697.4,3697.3,2.70461]
[1717789752076,1.26428547,3697.4,3696.9,2.70493]
[1717789752077,8.17200647,3697.4,3696.9,2.70493]
[1717789752273,3.0,3697.3,3696.9,2.70493]
[1717789752487,0.75,3697.0,3696.9,2.70493]
[1717789764799,0.75,3697.0,3696.9,3.221803]
[1717789766220,0.75,3697.0,3696.9,2.70493]
[1717789781989,3.021,3697.0,3696.9,2.70493]
[1717789782190,6.892,3697.0,3696.9,2.70493]
[1717789782404,7.47710035,3697.0,3696.9,2.70493]
[1717789782896,4.33510035,3697.0,3696.9,2.70493]
[1717789783228,3.75,3697.0,3696.9,2.70493]
[1717789785015,0.75,3697.0,3696.9,2.70493]
[1717789785226,3.75,3697.0,3696.9,2.70493]
[1717789786549,0.75,3697.0,3696.9,2.70493]
[1717789786694,3.75,3697.0,3696.9,2.70493]
[1717789786897,0.75,3697.0,3696.9,2.70493]
[1717789795505,0.9121,3697.0,3696.6,2.70518]
[1717789796350,3.9121,3697.0,3696.6,2.70518]
[1717789797115,4.49724216,3697.0,3696.6,2.70518]
[1717789800324,0.871,3696.7,3696.3,2.7054]
[1717789800557,0.871,3696.4,3696.3,2.7054]
[1717789800731,0.32588,3696.6,3696.3,2.7054]
[1717789800918,0.75,3696.4,3696.3,2.7054]
[1717789801425,0.75,3696.4,3695.7,0.871]
[1717789801627,0.871,3695.8,3695.1,2.70624]
[1717789801846,0.871,3695.3,3694.7,2.70653]
[1717789802012,0.871,3695.1,3694.7,2.70653]
[1717789802212,0.871,3695.1,3694.3,2.4174]
[1717789802213,0.871,3694.9,3694.3,2.70684]
[1717789802441,0.871,3694.7,3693.9,4.99974]
[1717789802656,0.871,3694.5,3693.9,2.70714]
[1717789802852,0.871,3694.3,3693.9,2.65714]
[1717789803259,3.0,3695.0,3693.9,2.65714]
[1717789803260,0.75,3694.0,3693.9,2.65714]
[1717789804331,0.75,3694.0,3693.3,2.70759]
[1717789804734,2.303,3694.2,3692.8,2.70791]
[1717789804735,1.69815466,3693.9,3692.8,2.70791]
[1717789804936,0.75,3692.9,3692.2,2.4717884]
[1717789805133,0.75,3692.9,3692.4,2.093]
[1717789805355,0.75,3692.9,3692.6,2.7081]
[1717789805557,0.75,3692.9,3692.6,4.10095466]
[1717789805765,0.75,3692.9,3692.8,2.70797]
[1717789807626,0.75,3692.9,3692.4,2.70825]
[1717789807925,1.39285466,3692.8,3692.2,0.1233884]
[1717789809939,3.75,3692.9,3692.2,0.1233884]
[1717789810239,1.39285466,3692.8,3692.2,0.1233884]
[1717789810444,0.75,3692.9,3692.3,2.70833]
[1717789810653,1.39285466,3692.8,3692.3,2.70833]
[1717789811230,1.39285466,3692.8,3692.2,0.1233884]
[1717789811464,2.50358547,3692.7,3692.2,0.1233884]
[1717789811763,1.39285466,3692.6,3692.2,0.1233884]
[1717789811966,1.39285466,3692.6,3692.2,2.8317284]
[1717789811967,3.0,3692.6,3692.2,2.8317284]
[1717789812128,0.75,3692.9,3692.6,2.7081]
[1717789813437,0.75,3692.9,3692.8,2.70797]
[1717789813658,0.75,3692.9,3692.8,3.25797]
[1717789813974,12.38,3694.7,3694.2,2.70687]
[1717789813975,0.008,3694.7,3694.2,2.70687]
[1717789814156,0.68928398,3694.7,3694.2,2.70687]
[1717789814360,0.75,3694.3,3694.2,2.70687]
[1717789814966,2.14285466,3694.3,3694.2,2.70687]
[1717789815197,2.14285466,3694.3,3693.7,2.70725]
[1717789815198,9.14207766,3694.3,3693.7,2.70725]